Workbook

Sheet Radio
C2: Designed By Alex Saunders Use smillies to lock / unlock sheet to edit. | L2: Unlocked
O3: You Can Enter Values As Formula ie. =2.7*Micro | T3: Total Capaticity Calculator
O4: OR Simply as normal 0.0000027 either way its the same. | T4: 1 - 3 series & 4 - 5 parallel
B5: Beware Some Values Can Be Rounded | H5: This Colours Cells Only Can Be Changed | O5: Frequancy Hz | P5: Henries | Q5: Capacitance | R5: Resistance | T5: Series | U5: Number Of
B6: Sheet Decimal Point Value Here > | E6: 12 | O6: =2*Mega -> 2000000 | P6: =10*Pico -> 1e-11 | Q6: 5e-05 | R6: 7.33326 | T6: 1/c | U6: Capacitors | V6: Farrad Value
T7: =IF(V7>0,ROUND(1/V7,6),"") -> 50000000000 | U7: Serial 1 | V7: =20*Pico -> 2e-11
U8: Serial 2
B9: Ohms Law Extra | G9: Total Resistance Calculator | K9: Half-Wave Dipole Length | Q9: Capacitor Reactance XC | U9: Serial 3
B10: V = I x R | C10: I = V / R | D10: R = V / I | G10: 1 - 3 parallel & 4 - 5 series | K10: Freq MHz > | L10: 443 | Q10: Formula Is = 1 / (2Pi * f * C) | T10: c/1 Total | U10: Parallel 4
B11: Voltage | C11: Current | D11: Resistance | G11: Parallel | H11: Number Of | K11: Feet | L11: Inches | Q11: Frequancy | R11: Capacitance | T11: =IFERROR(ROUND(1/(SUM(T7:T9)),E6),"") -> 2e-11 | U11: Parallel 5
B12: V = Volts | C12: I = Amps | D12: R = Ohms | G12: 1/r | H12: Resistors | I12: Ohms Value | K12: =TRUNC((5904/L10)/12) -> 1 | L12: =ROUND((5904/L10)-(K12*12),1) -> 1.3 | Q12: =O6 -> 2000000 | R12: =Q6 -> 5e-05 | T12: Total | U12: True Value = | V12: =ROUND(IF(T11="",V10+V11,T11+V10+V11),E6) -> 2e-11
B13: Use the calculator to set Resistance | G13: =IF(I13>0,ROUND(1/I13,6),"") -> 0.045455 | H13: Parallel 1 | I13: 22 | K13: =IF(L10>149.97,"Ariel Length Cm = ","Ariel Length Metres = ") -> Ariel Length Cm = | Q13: Xc Answer = | R13: =ROUND(1/(ppy*O6*Q6),E6) -> 0.001591549431 | T13: Value As >>> | U13: Nano | V13: =ROUND(IF(U13="Nano",V12*1000000000,IF(U13="Pico",V12*1000000000000,V12*1000000)),E6) -> 0.02
B14: 6 | D14: 7.33326 | G14: 0.045455 | H14: Parallel 2 | I14: 22 | K14: =ROUND(IF(K13="Ariel Length Metres = ",((5904/L10)*2.54)/100,(5904/L10)*2.54),2) -> 33.85
B15: ↑ Leave Desired Value Above Empty ↑ | G15: 0.045455 | H15: Parallel 3 | I15: 22 | K15: Allow extra to trim to resonace | U15: You Can Use These Names
B16: ANSWER >>> | C16: =IF(B14=0,IF(OR(C14=0,D14=0),0,IF(AND((C14*D14)<1,(C14*D14)>0.001),MROUND(((C14*D14)*1000),0.001)&" mV",IF((C14*D14)<0.001,MROUND(((C14*D14)*1000000),0.001)&" uV",MROUND((C14*D14),0.001)&" Volts"))),(IF(C14=0,IF(OR(B14=0,D14=0),0,IF(AND((B14/D14)<1,(B14/D14)>0.001),MROUND(((B14/D14)*1000),0.001)&" mA",IF((B14/D14)<0.001,MROUND(((B14/D14)*1000000),0.001)&" uA",MROUND((B14/D14),0.001)&" Amps"))),IF(D14=0,IF(OR(B14=0,C14=0),0,IF(AND((B14/C14)<1,(B14/C14)>0.001),MROUND(((B14/C14)*1000),0.001)&" mΩ",IF((B14/C14)<0.001,MROUND(((B14/C14)*1000000),0.001)&" uΩ",MROUND((B14/C14),0.001)&" Ohms"))),"Leave Desired Quantity Empty")))) -> 818.19 mA | G16: r/1 Total | H16: Series 4 | U16: Range | V16: Times
G17: =IFERROR(ROUND(1/(SUM(G13:G15)),E6),"") -> 7.333260001 | H17: Series 5 | Q17: Inductive Reactance XL | U17: Names | V17: Values
B18: > >>> Power <<< < | G18: Total | H18: True Value = | I18: =ROUND(IF(G17="",I16+I17,G17+I16+I17),E6) -> 7.333260001 | K18: RMS | L18: Power | Q18: Formula is -2Pi * f * L | U18: Tera | V18: 1000000000000
K19: Value RMS | L19: = Peek | Q19: Frequancy | R19: Henries | U19: Giga | V19: =1000000000 -> 1000000000
B20: Energy Formulas Power In Watts | F20: Z Impeedance Matching | K20: 100 | L20: =ROUND(K20/0.707,E6) -> 141.4427157 | Q20: =O6 -> 2000000 | R20: =P6 -> 1e-11 | U20: Mega | V20: =1000000 -> 1000000
B21: V * I | F21: V1 | G21: R1 | H21: V2 | I21: R2 | K21: Value Peek | L21: = Rms | Q21: XL Answer = | R21: =ROUND(ppy*O6*P6,E6) -> 0.000125663706 | U21: Kilo | V21: =1000 -> 1000
B22: ( I * I ) * R | C22: = | D22: =ROUND(IF(D14="",B14*C14,IF(C14=0,B14*(B14/D14),IF(B14=0,(C14*C14)*D14,0))),E6) -> 4.90914 | F22: 5 | G22: 0.5 | H22: 13.33 | I22: 8 | K22: 240 | L22: =ROUND(K22*0.707,E6) -> 169.68 | U22: ------------- | V22: 0
B23: ( V / R ) * V | F23: =IFERROR(ROUND((G22*I22*(F22-H22))/(G22*H22-I22*F22),E6),"Re-try") -> 0.9995500225 | U23: Centi | V23: 0.01
Q24: Choose Type Here ↓↓↓ | U24: Milli | V24: =0.001 -> 0.001
Q25: Impedance Z | R25: a XC Circuit | U25: Micro | V25: =0.000001 -> 1e-06
Q26: =IF(R25="a XL Circuit","Formula Is = Sqrt( R ² + Xl ²","Formula Is = Sqrt( R ² + XC ²") -> Formula Is = Sqrt( R ² + XC ² | U26: Nano | V26: =0.000000001 -> 1e-09
Q27: R is Ohms | R27: =IF(R25="a XL Circuit","Xl is Reactance","XC is Reactance") -> XC is Reactance | U27: Pico | V27: =0.000000000001 -> 1e-12
C28: Voltage Across (Series Risistors) | G28: R total = | H28: =ROUND(SUM(C31:G31),E6) -> 7.333260001 | J28: Visual Resistor Layout Diagram | Q28: =R6 -> 7.33326 | R28: =IF(R25="a XL Circuit","Xl = cell R21","XC = cell R13") -> XC = cell R13 | U28: Py | V28: =ROUND(PI(),E6) -> 3.141592654
C29: Total Value From Cell G17 | F29: From I16 | G29: From I17 | H29: Total | J29: =IF(J34=1,"R1",IF(J34=2,"R2",IF(J34=4,"R3",IF(J34=3,"R1 R2",IF(J34=6,"R2 R3",IF(J34=7,"R1 R2 R3",IF(J34=5,"R1 R3","None"))))))) -> R1 R2 R3 | K29: =IF(I16>0,"R4",IF(I17>0,"R5","")) ->  | L29: =IF(L32>0,"R5","") ->  | Q29: Z Answer = | R29: =IF(R6=0,"Check Values",IF(R25="a XL Circuit",ROUND(SQRT((R6*R6)+(R21*R21)),E6),ROUND(SQRT((R6*R6)+(R13*R13)),E6))) -> 7.333260173 | U29: Ppy | V29: =ROUND(2*PI(),E6) -> 6.283185307
B30: Total Volts | C30: =J29&" Parallel" -> R1 R2 R3 Parallel | F30: R4 | G30: R5 | H30: Amps | J30: =IF(I13>0,1,0) -> 1 | K30: =IF(I14>0,2,0) -> 2 | L30: =IF(I15>0,4,0) -> 4 | U30: eg. =2*Mega | V30: eg. =4.7*micro
B31: =IF(B14="",C16,B14) -> 6 | C31: =G17 -> 7.333260001 | F31: =I16 -> 0 | G31: =I17 -> 0 | H31: =IFERROR(ROUND(B31/SUM(C31:G31),E6),0) -> 0.81819 | J31: =IF(AND(I13>0,I14=0),0,I13) -> 22 | N31: Formula Explanation | U31: =2*V20 -> 2000000 | V31: =4.7*V25 -> 4.7e-06
B32: Voltage Across | C32: =IFERROR(ROUND(B31*(C31/SUM(C31:G31)),E6),0) -> 6 | F32: =IFERROR(ROUND(B31*(F31/SUM(C31:G31)),E6),0) -> 0 | G32: =IFERROR(ROUND(B31*(G31/SUM(C31:G31)),E6),0) -> 0 | H32: =E6&" D Places" -> 12 D Places | J32: =IF(I14>0,I14,IF(I13>0,I13,IF(AND(I13=0,I15>0),I15,0))) -> 22 | K32: =IF(I16>0,I16,I17) -> 0 | L32: =IF(AND(I16>0,I17>0),I17,0) -> 0 | N32: Phase Angle Volts To Current | Q32: Phase Angle Volts To Current | U32: A Name Example
J33: =IF(AND(I13=0,I14=0),0,I15) -> 22 | N33: Formula = Tan-1 (Xl / R ) | Q33: Formula = Tan-1 (Xl / R )
J34: =SUM(J30:L30) -> 7 | N34: Atan uses radians so we use | Q34: R is Ohms | R34: =IF(Q33="Formula = Tan-1 (Xl / R )","Xl is Reactance","XC is Reactance") -> Xl is Reactance | U34: ie in the cells as required for XC Reactance enter the values for Cell Q6 =4.7*Micro and Cell O6 =2*Mega
J35: =IF(J31+J33=0,"Only Serial Resistors ","Parallel Resistors In The Circuit") -> Parallel Resistors In The Circuit | N35: *180/Pi() converts it into Degrees ° | Q35: =R6 -> 7.33326 | R35: =IF(Q33="Formula = Tan-1 (Xl / R )",R21,R13) -> 0.000125663706
C36: Current Across (Parallel Risistors) | G36: R total = | H36: =ROUND(I18,E6) -> 7.333260001 | N36: eg. =(ATAN(1.2 / 20))*180/PI() | Q36: Phase Angle ° = | R36: =IFERROR(ROUND((ATAN(R35/R6))*180/PI(),E6),"check values") -> 0.000981827999
C37: Voltage Value From G13 | F37: From G14 | G37: From G15 | H37: Total | N37: Phase Angle ° = | O37: =ROUND((ATAN(1.2/20))*180/Py,E6) -> 3.433630362
B38: Total Volts | C38: R1 | F38: R2 | G38: R3 | H38: Amps | U38: The Answer = | V38: =ROUND(1/(ppy*(2*Mega)*(4.7*Micro)),E6) -> 0.01693137693
B39: =C32 -> 6 | C39: =I13 -> 22 | F39: =I14 -> 22 | G39: =I15 -> 22 | H39: =IF(B39=0,0,IFERROR(ROUND(B31/SUM(C31:G31),E6),0)) -> 0.81819
B40: Current Across | C40: =IFERROR(ROUND(H39*(I13/SUM(I13:I15)*100)%,E6),0) -> 0.27273 | F40: =IFERROR(ROUND(H39*(I14/SUM(I13:I15)*100)%,E6),0) -> 0.27273 | G40: =IFERROR(ROUND(H39*(I15/SUM(I13:I15)*100)%,E6),0) -> 0.27273 | H40: =E6&" D Places" -> 12 D Places
